Cogmind - Beta 15 @@@ ROGUE MODE // 2025.10.18 @ 18:31:20 Player: shapeshifter Result: Destroyed self with Sigix Terminator Performance ------------- Evolutions (9) 4500 Regions Visited (18) 3600 Robots Destroyed (184) 920 Value Destroyed (8365) 8365 Prototype IDs (75) 1500 Alien Tech Used (3) 600 Bonus (6391) 6391 TOTAL SCORE: 25876 Bonus ------- High Alert Combat Kills 13 Follower Combat Kills 472 Entered DSFs 500 Aligned with FarCom 300 Met Warlord at Base 500 MAIN.C Attacked Warlord 500 Warlord Defense Kills 1718 Hacked Protovariant 500 Met Warlord at Research 2000 Friendly Fire -112 Cogmind --------- Core Integrity 0/1600 Matter 85/300 Energy 64/100 System Corruption 16% Temperature Cool (0) Movement Core (100) Ox1 Location -1/Access Parts ------- > --- POWER (2) -------- (None) > --- PROPULSION (7) --- (None) > --- UTILITY (12) ----- Spectral Analyzer Experimental Signal Interpreter Experimental Targeting Computer Advanced Target Analyzer Advanced Transmission Jammer Advanced System Shield > --- WEAPON (4) ------- Vibroblade > --- INVENTORY (5) ---- Light Antimatter Reactor Improved Potential Cannon Peak State ------------ > --- POWER ------------ Light Quantum Reactor Improved Quantum Reactor > --- PROPULSION ------- Improved Antigrav System Improved Antigrav System Improved Antigrav System Improved Linear Gravjet Cooled Antigrav System Combat Antigrav System Combat Antigrav System > --- UTILITY ---------- Advanced Cooling System High-capacity Storage Unit Advanced Weight Redist. System Spectral Analyzer Experimental Sensor Array Experimental Signal Interpreter 0b10 Decoder Chip [Generic] Experimental Core Analyzer Improved Hacking Suite Advanced Hacking Suite > --- WEAPON ----------- Improved Potential Cannon Helical Railgun Helical Railgun > --- INVENTORY -------- Light Antimatter Reactor Light Antimatter Reactor Improved Antigrav System Advanced Power Amplifier Experimental Heat Sink Advanced Energy Well Experimental Targeting Computer Advanced Target Analyzer Stasis Canceller Advanced Transmission Jammer Experimental Reaction Control System Advanced Phase Shifter Graphene Brace System Mapper High-powered Transdimensional Reconstructor High-powered Transdimensional Reconstructor Enhanced Nova Cannon Enhanced Nova Cannon Sigix Terminator [Rating: 195] Favorites ----------- Power Heavy Deuterium Engine Engine Heavy Deuterium Engine Power Core Micro Nuclear Core Reactor Light Quantum Reactor Propulsion Improved Titanium Leg Treads Improved Treads Leg Improved Titanium Leg Wheel Wheel Hover Unit Improved Antigrav System Flight Unit Cooled Impulse Thruster Utility High-capacity Storage Unit Device Improved Heat Sink Storage High-capacity Storage Unit Processor Improved Signal Interpreter Hackware Hacking Suite Protection Improved Medium Armor Plating Weapon Advanced Assault Cannon Energy Gun Precision Phase Gun Energy Cannon Disruptor Cannon Ballistic Gun Autogun Ballistic Cannon Advanced Assault Cannon Launcher Rocket Array Special Weapon Advanced Remote Datajack Slashing Weapon Vibroblade Piercing Weapon Vortex Lance Build | -11 -10 -10 -10 -9 -8 -7 -6 -6 -5 -5 -5 -4 -4 -3 -3 -2 -2 -1 ------- Run | Yrd Mat Min Exi Min Mat Fac Fac DSF Fac Upp War Pro Fac Res Qua Res Tes Acc Slots Evolved 18 | . . . . . 4 2 2 . 2 . . . 2 2 . 2 . 2 Power 1 | . . . . . . . . . 1 . . . . . . . . . Propulsion 5 | . . . . . 1 1 . . . . . . 1 2 . . . . Utility 10 | . . . . . 2 1 2 . . . . . 1 . . 2 . 2 Weapon 2 | . . . . . 1 . . . 1 . . . . . . . . . Parts Attached 247 | 7 10 1 2 4 29 19 . 13 7 1 29 1 25 26 4 38 18 13 Power 28 | 1 2 . . . 1 4 . 1 1 . 2 . 5 3 1 5 1 1 Engine 9 | 1 2 . . . 1 3 . 1 1 . . . . . . . . . Core 1 | . . . . . . 1 . . . . . . . . . . . . Reactor 18 | . . . . . . . . . . . 2 . 5 3 1 5 1 1 Propulsion 65 | 2 1 . . 1 8 4 . 4 . . 8 1 7 9 1 9 8 2 Treads 14 | 2 1 . . 1 8 2 . . . . . . . . . . . . Leg 22 | . . . . . . . . 4 . . 8 1 4 3 1 1 . . Wheel 1 | . . . . . . 1 . . . . . . . . . . . . Hover 21 | . . . . . . 1 . . . . . . . 2 . 8 8 2 Flight 7 | . . . . . . . . . . . . . 3 4 . . . . Utility 90 | 1 3 1 2 1 11 7 . 2 1 1 11 . 9 10 2 15 6 7 Device 34 | . 1 . . 1 3 . . 1 . 1 2 . 4 4 2 10 2 3 Storage 9 | 1 1 . 1 . 1 1 . 1 . . . . . 1 . 1 1 . Processor 18 | . . . . . . 1 . . . . 7 . 1 4 . 3 . 2 Hackware 10 | . . . . . . 2 . . . . . . 2 1 . . 3 2 Protection 19 | . 1 1 1 . 7 3 . . 1 . 2 . 2 . . 1 . . Artifact . | . . . . . . . . . . . . . . . . . . . Weapon 64 | 3 4 . . 2 9 4 . 6 5 . 8 . 4 4 . 9 3 3 Energy Gun 7 | . 1 . . . 1 . . . . . . . 1 1 . 1 . 2 Energy Cannon 11 | . . . . . . . . . 3 . 2 . . 2 . 3 1 . Ballistic Gun 20 | 3 3 . . 2 2 . . 3 1 . 1 . 1 . . 4 . . Ballistic Cannon 15 | . . . . . 5 4 . 3 . . 1 . 2 . . . . . Launcher 5 | . . . . . 1 . . . 1 . 1 . . . . . 1 1 Special Weapon 3 | . . . . . . . . . . . 2 . . . . 1 . . Impact Weapon . | . . . . . . . . . . . . . . . . . . . Slashing Weapon 1 | . . . . . . . . . . . . . . . . . 1 . Piercing Weapon 2 | . . . . . . . . . . . 1 . . 1 . . . . Special Melee Weapon . | . . . . . . . . . . . . . . . . . . . Unidentified Prototypes 44 | . 1 . . 1 3 1 . . . . 11 . 2 4 1 10 8 2 Corrupted Parts 2 | . . . . . . . . . . . . . . . . 2 . . System Corruption 14 | . . . . . . . . . . . . . . . . 14 . . Parts Lost 94 | . 1 . . . . 12 . 2 . 2 14 4 22 1 4 2 4 26 Power 12 | . . . . . . 3 . . . . 1 . 4 . 1 1 . 2 Propulsion 32 | . . . . . . 5 . . . . 5 1 7 . 2 1 1 10 Utility 30 | . 1 . . . . 1 . 2 . 2 3 . 7 1 1 . 1 11 Weapon 20 | . . . . . . 3 . . . . 5 3 4 . . . 2 3 Highest Loss Streak 21 | . 1 . . . . 6 . 2 . 2 11 4 21 1 2 2 2 16 To Critical Strikes 2 | . . . . . . . . . . . . 1 1 . . . . . Average Backups 14 | 4 8 10 10 10 15 14 14 19 18 14 17 18 18 4 11 17 18 9 Power . | . . . . . 1 . . 1 . . . 1 2 . . 1 2 1 Propulsion 1 | 1 1 . . . 2 . . 1 2 2 1 . . 1 2 2 1 . Utility 6 | . 3 6 6 7 5 7 6 8 9 7 10 12 10 1 4 8 10 4 Weapon 4 | 1 2 3 4 2 4 6 6 7 6 4 4 3 3 1 2 3 2 1 Tool/Special . | . . . . . . . . . . . . . . . . . . . Unused Backups 41 | . 4 1 1 2 7 . . 5 . 1 4 . 7 1 2 4 1 1 Power 3 | . . . . . 1 . . . . . 2 . . . . . . . Propulsion 5 | . 1 1 . . . . . . . . . . 1 . 1 1 . . Utility 20 | . 2 . 1 2 . . . 3 . 1 . . 6 1 . 2 1 1 Weapon 11 | . 1 . . . 5 . . 1 . . 2 . . . 1 1 . . Tool/Special 2 | . . . . . 1 . . 1 . . . . . . . . . . Average Slot Usage (%) 84 | . 97 100 73 99 96 76 64 76 93 90 77 81 75 59 75 83 94 70 Engine 6 | . 13 14 14 14 9 4 6 6 11 11 9 . . . . . . . Reactor 1 | . . . . . . . . . . . . 5 7 3 8 7 8 5 Treads 12 | . 28 28 28 28 26 17 . . . . . . . . . . . . Leg 6 | . . . . . . . . 13 23 23 22 22 17 1 14 5 . . Hover 3 | . . . . . . . . . . . . . . 5 . 20 29 18 Device 7 | . . . . . 2 9 18 14 12 7 . 5 3 6 12 21 13 12 Storage 7 | . 14 14 14 14 9 7 6 6 5 5 5 5 4 . 4 4 4 3 Processor 7 | . . . . . . 5 6 6 5 5 13 23 15 19 14 14 14 18 Hackware 3 | . . . . . . 6 6 6 5 5 3 . 9 1 4 . 8 4 Protection 7 | . 11 14 14 14 23 4 5 2 3 5 1 5 4 . . . . . Energy Cannon 2 | . . . . . . . . . 6 17 12 4 . . 1 1 . . Ballistic Gun 7 | . 27 28 2 27 8 . . 6 13 . . 3 3 . . 4 12 2 Ballistic Cannon 5 | . . . . . 17 16 6 8 . . . . 4 . . . . . Peak Build Rating 195 | 6 10 10 10 23 44 51 46 83 91 86 127 122 131 126 131 192 195 189 Average Rating 62 | 5 8 10 7 15 35 40 44 64 87 78 72 106 97 84 115 150 181 144 On Entrance 64 | . 6 10 10 10 16 43 30 46 83 87 71 108 95 23 126 104 184 168 Naked Turns . | . . . . . . . . . . . . . . . . . . . Heaviest Build 169 | 12 22 24 28 34 89 80 70 118 169 169 167 136 110 84 84 99 98 87 Greatest Support 128 | 40 40 40 40 40 69 96 10 80 80 80 108 108 128 84 104 104 103 103 Greatest Overweight (x) 19 | . . . . . 1 19 6 8 2 2 2 1 3 1 . 1 1 2 Average Overweight (x) . | . . . . . . 1 5 3 1 2 . . . . . . . . Largest Inventory Capacity 25 | 8 10 10 15 15 20 20 20 25 25 25 25 20 20 20 20 20 20 20 Average Capacity 18 | 7 8 10 12 15 19 20 20 22 25 25 22 20 18 7 20 20 20 14 Most Carried 25 | 6 10 10 15 15 20 20 19 25 24 16 25 20 20 6 20 20 20 20 Average Carried 16 | 4 8 10 11 14 19 18 17 21 20 14 18 19 18 4 12 18 19 11 Final Capacity 25 | 8 10 10 15 15 20 20 20 25 25 25 20 20 5 20 20 20 20 20 Final Carried 25 | 6 10 10 14 15 20 18 18 25 17 14 20 19 5 4 19 20 20 12 Class Distribution -------------------- 47% | Mutant 26% | Tank 7% | Scavenger-Scout 5% | Gunner 4% | Skirmisher 4% | Scavenger-Mutant Dominant Class ---------------- Mutant | -10/Materials Mutant | -10/Mines Mutant | -10/Exiles Mutant | -9/Mines Tank | -8/Materials Tank | -7/Factory Mutant | -6/Factory Skirmisher | -6/DSF Skirmisher | -5/Factory Tank | -5/Upper Caves Gunner | -5/Warlord Mutant | -4/Proximity Caves Hacker-Mutant | -4/Factory Mutant | -3/Research Mutant | -3/Quarantine Scavenger-Scout | -2/Research Scavenger-Scout | -2/Testing Scavenger-Scout | -1/Access Resources | -11 -10 -10 -10 -9 -8 -7 -6 -6 -5 -5 -5 -4 -4 -3 -3 -2 -2 -1 ----------- Run | Yrd Mat Min Exi Min Mat Fac Fac DSF Fac Upp War Pro Fac Res Qua Res Tes Acc Matter Collected 7598 | 324 757 68 . 118 1195 991 204 213 231 126 781 279 848 205 160 819 244 35 Remotely . | . . . . . . . . . . . . . . . . . . . Salvage Created 7193 | 146 835 50 . 84 999 829 . . 231 384 434 50 803 421 639 642 382 264 Parts 349 | 11 56 5 . 6 67 44 . . 5 11 20 . 26 11 27 17 28 15 Haulers Intercepted 4 | . 2 . . . 1 . . . . . . . 1 . . . . . Recyclers Shooed 2 | . 1 . . . . . . . . . . . . . . 1 . . Parts Field Recycled . | . . . . . . . . . . . . . . . . . . . Retrieved Matter . | . . . . . . . . . . . . . . . . . . . Parts Self-Destructed 7 | . . . . . . . . . . 1 . 6 . . . . . . Prevented 2 | . . . . . . . . . . 1 . 1 . . . . . . Kills | -11 -10 -10 -10 -9 -8 -7 -6 -6 -5 -5 -5 -4 -4 -3 -3 -2 -2 -1 ------- Run | Yrd Mat Min Exi Min Mat Fac Fac DSF Fac Upp War Pro Fac Res Qua Res Tes Acc Combat Hostiles Destroyed 143 | . 18 2 . 2 20 22 . . 4 11 15 1 13 3 5 10 5 12 Melee 18 | . . . . . 1 . . . . . 3 . 1 3 5 . 3 2 Guns 45 | . 18 2 . 2 7 . . . 4 . 1 . 2 . . 7 2 . Cannons 47 | . . . . . 12 22 . . . 1 . 1 9 . . 2 . . AOE 31 | . . . . . . . . . . 10 11 . . . . . . 10 Classes Destroyed 19 | 3 4 . . 1 4 2 . . 1 1 2 . . . . 1 . . Worker 7 | 1 1 1 . . . 3 . . . . . . 1 . . . . . Builder 5 | . . . . . 2 1 . . . . . . 2 . . . . . Tunneler 2 | 2 . . . . . . . . . . . . . . . . . . Hauler 4 | . 2 . . . 1 . . . . . . . 1 . . . . . Recycler 11 | 1 2 . . . . 2 . . . . . . 1 2 3 . . . Mechanic 2 | . . . . . . 1 . . . . . . 1 . . . . . Operator 2 | . . . . . 1 . . . . . . . . . . . 1 . Watcher 8 | . 3 . . . 4 1 . . . . . . . . . . . . Swarmer 28 | . 9 2 . . . 4 . . . . . . 3 1 . 1 . 8 Saboteur 3 | . . . . . . . . . . . 3 . . . . . . . Grunt 51 | . 9 . . 1 10 6 . . . 4 6 1 6 . 2 4 2 . Brawler 5 | . . . . 1 . 1 . . . 2 1 . . . . . . . Duelist 2 | . . . . . . . . . . 2 . . . . . . . . Sentry 21 | . . . . . 9 6 . . 2 1 . . 1 2 . . . . Specialist 2 | . . . . . . . . . 2 . . . . . . . . . Hunter 8 | . . . . . 1 1 . . . 2 . . 2 . . 2 . . Programmer 19 | . . . . . . 4 . . . . 4 . 1 . 3 . 3 4 Striker 1 | . . . . . . . . . . . . . . . . 1 . . Executioner 3 | . . . . . . . . . . . 1 . . . . 2 . . Best Kill Streak 12 | 3 3 3 . 2 4 5 . . 2 9 12 1 9 2 3 2 3 9 Combat Bots Only 12 | . 3 2 . 2 4 4 . . 2 9 12 1 7 1 2 2 3 9 Max Kills in Single Turn 7 | 1 1 2 . 1 1 4 . . 1 4 4 1 2 1 1 1 1 7 Gunslinging . | . . . . . . . . . . . . . . . . . . . Exploded 7 | . . . . . . . . . . 4 4 . . . . . . 7 Melee 1 | . . . . . 1 . . . . . 1 . 1 1 1 . 1 1 Uniques/NPCs Destroyed . | . . . . . . . . . . . . . . . . . . . Combat | -11 -10 -10 -10 -9 -8 -7 -6 -6 -5 -5 -5 -4 -4 -3 -3 -2 -2 -1 -------- Run | Yrd Mat Min Exi Min Mat Fac Fac DSF Fac Upp War Pro Fac Res Qua Res Tes Acc Hostile Shots Fired 1774 | . 68 19 . 3 136 388 . 8 52 33 148 98 310 61 75 79 62 234 Missed 596 | . 21 8 . 1 28 123 . 2 19 10 47 23 107 28 30 45 17 87 Hits 1178 | . 47 11 . 2 108 265 . 6 33 23 101 75 203 33 45 34 45 147 Melee 9 | . . . . . . . . . . 4 5 . . . . . . . Projectile 1169 | . 47 11 . 2 108 265 . 6 33 19 96 75 203 33 45 34 45 147 AOE 5 | . . . . . . . . . . . 3 . . . . 2 . . Critical Strikes 43 | . . . . . 5 2 . . . . 6 4 13 1 . 1 6 5 Actively Blocked 3 | . . . . . 1 . . . . . . . . . . . . 2 Part Disruptions 3 | . . . . . . . . . . . 1 . . . . 1 . 1 Damage Taken 21222 | . 486 91 . 23 1671 2851 . 213 454 290 2854 1241 3767 552 755 914 1043 4017 Core 4366 | . 38 10 . . 203 360 . . 49 . 859 82 715 131 62 120 116 1621 Absorbed by Shields 396 | . . . . . . 117 . 39 . . . . . . 132 108 . . Redirected to Shielding 24 | . . . . . 24 . . . . . . . . . . . . . Ignored by Resistances 619 | . . . . . . . . . 285 97 99 . . . 138 . . . Regen/Repaired (Parts) 196 | . . . . . . . . . . . 100 . . . . 14 82 . Core Remaining (%) 65 | 100 . . . 80 63 48 . 100 . . . 1 37 . 74 . 83 . Volleys Fired 396 | 9 69 4 . 5 62 72 . . 18 14 12 15 59 1 3 43 7 3 Largest 4 | 2 2 2 . 2 3 3 . . 4 3 2 3 3 1 1 3 3 2 Hottest 243 | 40 46 46 . 46 120 120 . . 120 243 162 204 137 90 90 210 114 200 Shots Fired 861 | 18 138 8 . 10 173 178 . . 72 28 14 19 98 1 3 76 21 4 Gun 444 | 18 138 8 . 10 76 . . . 72 . 5 2 35 . . 57 21 2 Cannon 397 | . . . . . 97 178 . . . 21 3 14 60 1 3 19 . 1 Launcher 12 | . . . . . . . . . . 7 4 . . . . . . 1 Special 8 | . . . . . . . . . . . 2 3 3 . . . . . Kinetic 780 | 18 138 8 . 10 173 178 . . 72 . 5 10 90 . . 57 21 . Thermal 36 | . . . . . . . . . . . . 4 5 1 3 19 . 4 Explosive 11 | . . . . . . . . . . 7 4 . . . . . . . Electromagnetic 26 | . . . . . . . . . . 21 3 2 . . . . . . Robot Hit Streak 18 | 5 9 2 . 4 15 18 . . 13 4 3 4 9 . . 10 4 2 Robot Miss Streak 10 | 3 6 2 . 3 5 5 . . 6 10 2 3 2 . . 7 4 . Penetration Max 2 | . . . . . . . . . . . . . 2 . . 1 . . Secondary Targets 9 | . 4 . . . 2 . . . . . . . . . . 2 1 . Max Gunslinging Chain 1 | . 1 . . . 1 . . . . . . . . . . 1 1 . Shots Hit Robots 508 | 11 73 3 . 6 97 101 . . 36 11 12 10 63 14 17 34 11 9 Core Hits 352 | 4 35 3 . 3 42 46 . . 11 63 60 3 33 5 7 19 9 9 Critical Kills 4 | . 1 . . 1 . . . . . . . . . . . 1 1 . Critical Parts Destroyed 3 | . . . . . . . . . 2 . . . 1 . . . . . Critical Strikes 35 | . 1 . . 1 6 4 . . 2 . 1 1 8 5 2 1 2 1 Destroy 7 | . 1 . . 1 . . . . 2 . . . 1 . . 1 1 . Blast 18 | . . . . . 6 4 . . . . . 1 7 . . . . . Sever 2 | . . . . . . . . . . . . . . . . . 1 1 Sunder 8 | . . . . . . . . . . . 1 . . 5 2 . . . Melee Attacks 111 | . . . . . . . . . . . 11 . 7 22 29 1 15 26 Impact . | . . . . . . . . . . . . . . . . . . . Slashing 41 | . . . . . . . . . . . . . . . . . 15 26 Piercing . | . . . . . . . . . . . . . . . . . . . Entropic 70 | . . . . . . . . . . . 11 . 7 22 29 1 . . Sneak Attacks 6 | . . . . . . . . . . . . . 1 2 3 . . . Combat Hostiles . | . . . . . . . . . . . . . . . . . . . Follow-up Attacks . | . . . . . . . . . . . . . . . . . . . Damage Inflicted 25059 | 155 1003 73 . 88 2088 3156 . . 960 1605 2828 433 2696 1358 1569 1426 461 5160 Guns 5124 | 155 1003 73 . 88 740 . . . 926 . 74 58 845 . . 940 222 . Cannons 6369 | . . . . . 1330 2831 . . . 94 15 375 1345 . . 379 . . Explosions 8817 | . . . . . . 277 . . . 1511 2219 . . . . 107 . 4703 Melee 4649 | . . . . . . . . . . . 520 . 506 1358 1569 . 239 457 Ramming 100 | . . . . . 18 48 . . 34 . . . . . . . . . Kinetic 10750 | 155 1003 73 . 88 2070 2831 . . 926 . 74 358 2010 . . 940 222 . Thermal 5408 | . . . . . . . . . . . . 39 180 . . 486 . 4703 Explosive 4007 | . . . . . . 277 . . . 1511 2219 . . . . . . . Electromagnetic 145 | . . . . . . . . . . 94 15 36 . . . . . . Impact . | . . . . . . . . . . . . . . . . . . . Slashing 696 | . . . . . . . . . . . . . . . . . 239 457 Piercing . | . . . . . . . . . . . . . . . . . . . Entropic 3953 | . . . . . . . . . . . 520 . 506 1358 1569 . . . Highest Corruption 30 | . 1 1 1 1 . 7 . . . . 15 15 5 . 4 19 30 16 Average Corruption 6 | . 1 1 1 1 . 3 . . . . 13 15 4 . 3 15 24 5 Corruption Purged . | . . . . . . . . . . . . . . . . . . . Corruption Blocked . | . . . . . . . . . . . . . . . . . . . Effects 190 | . 1 5 4 12 . 47 . . . . 19 18 3 . 4 50 23 4 Message Errors 43 | . . 2 2 5 . 7 . . . . 6 5 1 . 1 8 5 1 Matter Fused 43 | . . 2 1 4 . 13 . . . . 1 4 . . . 13 5 . Heat Flow Errors 26 | . 1 . . 2 . 5 . . . . . 2 . . 1 10 3 2 Energy Discharges 18 | . . . . . . 5 . . . . 5 2 . . . 5 1 . Parts Rejected 6 | . . . . . . 1 . . . . . . 2 . 1 1 1 . Parts Fused 3 | . . . . . . 2 . . . . . . . . . . 1 . Data Loss (minor) 28 | . . . 1 . . 12 . . . . 3 4 . . . 5 2 1 Data Loss (major) 5 | . . 1 . 1 . . . . . . . 1 . . 1 . 1 . Misfires 3 | . . . . . . 1 . . . . 1 . . . . 1 . . Alerts 5 | . . . . . . 1 . . . . 1 . . . . 2 1 . Misdirections 9 | . . . . . . . . . . . 2 . . . . 4 3 . Weapon Failures 1 | . . . . . . . . . . . . . . . . 1 . . Overload Shots . | . . . . . . . . . . . . . . . . . . . Overflow Damage 1627 | . . . . . . 57 . . . 19 86 65 320 292 139 14 . 635 Projectiles 192 | . . . . . . 57 . . . . . 65 63 . . 7 . . Explosions 632 | . . . . . . . . . . 19 . . . . . 7 . 606 Melee 803 | . . . . . . . . . . . 86 . 257 292 139 . . 29 Knockbacks 57 | . . . . . 16 21 . . . . . 4 16 . . . . . Impact 2 | . . . . . 1 1 . . . . . . . . . . . . Kinetic 50 | . . . . . 14 20 . . . . . 2 14 . . . . . Secondary 5 | . . . . . 1 . . . . . . 2 2 . . . . . Self-Inflicted Damage 1138 | . . . . . . 56 . . . . 41 . . . . . . 1041 Shots 5 | . . . . . . 1 . . . . 2 . . . . . . 2 Rammed 12 | . . . . . 2 10 . . . . . . . . . . . . Targets Rammed 14 | . . . . . 3 10 . . 1 . . . . . . . . . Kicked 1 | . . . . . . . . . 1 . . . . . . . . . Crushed 1 | . . . . . 1 . . . . . . . . . . . . . Highest Temperature 582 | . 283 12 . 212 385 240 . . 340 529 72 582 347 24 149 412 336 326 Average Temperature 117 | . 48 9 . 67 131 35 . . 162 200 19 217 76 17 108 140 90 121 Received Heat Transfer 2754 | . 171 . . 12 792 547 . . 9 63 219 210 364 103 54 84 72 54 Effects 21 | . . . . . 8 . . . 1 3 . 5 . . . 4 . . Shutdowns 2 | . . . . . 1 . . . . . . 1 . . . . . . Energy Bleed 2 | . . . . . 1 . . . . . . . . . . 1 . . Interference 7 | . . . . . 3 . . . . 1 . . . . . 3 . . Matter Decay 2 | . . . . . . . . . . 1 . 1 . . . . . . Short Circuit 1 | . . . . . 1 . . . . . . . . . . . . . Damage (minor) 4 | . . . . . 2 . . . 1 1 . . . . . . . . Damage (major) 3 | . . . . . . . . . . . . 3 . . . . . . Siege Activations . | . . . . . . . . . . . . . . . . . . . Martial Activations . | . . . . . . . . . . . . . . . . . . . Shielding Activations . | . . . . . . . . . . . . . . . . . . . Robots Disrupted . | . . . . . . . . . . . . . . . . . . . Combat Hostiles . | . . . . . . . . . . . . . . . . . . . Robots Corrupted 1 | . . . . . . . . . . . . . 1 . . . . . Combat Hostiles 1 | . . . . . . . . . . . . . 1 . . . . . Parts Fried 1 | . . . . . . . . . . . . . 1 . . . . . Impact Corruptions 1 | . . . . . . . . . . . . . 1 . . . . . Robots Melted . | . . . . . . . . . . . . . . . . . . . Combat Hostiles . | . . . . . . . . . . . . . . . . . . . Parts Melted 2 | . . . . . . . . . . . . . . . . . . 2 Heat Transferred 1152 | . . . . . . . . . . . . . 185 . . 87 . 880 Parts Sabotaged . | . . . . . . . . . . . . . . . . . . . Parts Stolen 3 | . . . . . . . . . . 3 . . . . . . . . Parts Stripped . | . . . . . . . . . . . . . . . . . . . Power Chain Reactions 1 | . . . . . . . . . . . . . . . . 1 . . Alert | -11 -10 -10 -10 -9 -8 -7 -6 -6 -5 -5 -5 -4 -4 -3 -3 -2 -2 -1 ------- Run | Yrd Mat Min Exi Min Mat Fac Fac DSF Fac Upp War Pro Fac Res Qua Res Tes Acc Maximum Alert Level 2 | . . . . . 1 2 . . . . . . 1 1 . 1 1 1 Low Security (%) 80 | 100 100 100 . 100 83 44 100 100 100 . . . 49 66 100 97 85 66 Level 1 19 | . . . . . 16 54 . . . . . . 50 33 . 2 14 33 Level 2 . | . . . . . . . . . . . . . . . . . . . Level 3 . | . . . . . . . . . . . . . . . . . . . Level 4 . | . . . . . . . . . . . . . . . . . . . Level 5 . | . . . . . . . . . . . . . . . . . . . High Security . | . . . . . . . . . . . . . . . . . . . Max Security . | . . . . . . . . . . . . . . . . . . . Peak Influence 400 | 10 173 56 . 55 263 400 158 22 62 . . . 369 343 185 210 223 266 Initial 185 | . . 56 . . . 111 158 . . . . . . 134 185 8 114 46 Average 106 | 1 69 7 . 3 98 228 43 . 17 . . . 146 184 64 94 180 103 Influence Increases 6143 | 20 576 55 . 65 691 1010 34 22 112 230 489 57 714 404 191 724 258 491 Destroy 0b10 Robot/C 3200 | . 360 40 . 40 400 480 . 20 80 220 440 40 380 60 100 200 100 240 Destroy 0b10 Robot/NC 220 | 20 40 5 . . 40 45 . . . . . . 40 10 15 . 5 . Destroy Leader 618 | . 80 10 . 10 140 164 . . 30 10 . . 64 20 10 20 10 50 Allied During Kill 47 | . . . . . 2 6 . 2 . . 4 2 17 . . . 14 . Successful Hack 201 | . 34 . . . 15 34 34 . . . . . . . 12 . 48 24 Select Force Hacks 60 | . 60 . . . . . . . . . . . . . . . . . Disable Machine 420 | . . . . 15 60 210 . . . . . . 60 15 15 . 45 . Anti-Garrison Action 150 | . . . . . . . . . . . . . . . . 150 . . Destroy Structure 447 | . 2 . . . 34 56 . . 2 . . . 138 14 24 69 21 87 Partial Spotted 90 | . . . . . . 15 . . . . . . . 15 . 15 15 30 Lose Combat Pursuer 690 | . . . . . . . . . . . 45 15 15 270 15 270 . 60 Influence Decreases 5900 | 20 430 201 . 65 446 931 358 22 112 162 389 225 458 330 506 534 385 326 Entered New Map 1023 | . . 90 . . . 134 166 . . . 68 168 . 122 145 7 91 32 Time Decay 3820 | 20 430 111 . 65 426 677 90 . 112 142 121 37 206 198 331 507 214 133 Lost Part 771 | . . . . . . 120 . . . 20 140 20 210 10 30 20 40 161 Lost Ally 184 | . . . . . 20 . . 22 . . 60 . 42 . . . 40 . Purge Threat 102 | . . . . . . . 102 . . . . . . . . . . . Squads Dispatched 45 | . 3 . . . . 13 . 2 1 . . . 7 4 2 1 9 3 Investigation 8 | . 3 . . . . 3 . . . . . . . 1 . . . 1 Extermination 13 | . . . . . . 6 . . . . . . 1 2 1 . 1 2 Reinforcement 16 | . . . . . . 1 . 2 1 . . . 2 1 1 1 7 . Assault 3 | . . . . . . . . . . . . . 2 . . . 1 . Garrison 5 | . . . . . . 3 . . . . . . 2 . . . . . Intercept . | . . . . . . . . . . . . . . . . . . . Searches Triggered . | . . . . . . . . . . . . . . . . . . . Construction Impeded 1 | . . . . . . . . . . . . . 1 . . . . . Haulers Reinforced 1 | . . . . . . . . . . . . . 1 . . . . . Active Scanning Responses . | . . . . . . . . . . . . . . . . . . . Cargo Convoy Interrupts . | . . . . . . . . . . . . . . . . . . . Stealth | -11 -10 -10 -10 -9 -8 -7 -6 -6 -5 -5 -5 -4 -4 -3 -3 -2 -2 -1 --------- Run | Yrd Mat Min Exi Min Mat Fac Fac DSF Fac Upp War Pro Fac Res Qua Res Tes Acc Distress Signals 20 | . 1 . . . 2 . . . . . 3 . 1 2 1 7 1 2 Communications Jammed 3 | . . . . . . . . . . . . . . . . 3 . . Distress Signals 3 | . . . . . . . . . . . . . . . . 3 . . Times Spotted 327 | . 25 3 . 2 33 30 . 7 4 15 32 7 30 19 20 54 15 31 Peak Tracking Total 18 | . 5 3 . 1 6 4 . 2 2 9 18 6 10 11 5 8 8 16 Tactical Retreats 23 | . . . . . . . . . . . 2 1 1 5 1 9 . 4 Traps | -11 -10 -10 -10 -9 -8 -7 -6 -6 -5 -5 -5 -4 -4 -3 -3 -2 -2 -1 ------- Run | Yrd Mat Min Exi Min Mat Fac Fac DSF Fac Upp War Pro Fac Res Qua Res Tes Acc Traps Triggered 8 | . 3 . . . . 4 . . . . . . . . . . 1 . Indirectly . | . . . . . . . . . . . . . . . . . . . Trap Hack Attempts . | . . . . . . . . . . . . . . . . . . . Triggered . | . . . . . . . . . . . . . . . . . . . Disarmed . | . . . . . . . . . . . . . . . . . . . Reprogrammed . | . . . . . . . . . . . . . . . . . . . Reused . | . . . . . . . . . . . . . . . . . . . Traps Extracted . | . . . . . . . . . . . . . . . . . . . Installed . | . . . . . . . . . . . . . . . . . . . Triggered . | . . . . . . . . . . . . . . . . . . . Machines | -11 -10 -10 -10 -9 -8 -7 -6 -6 -5 -5 -5 -4 -4 -3 -3 -2 -2 -1 ---------- Run | Yrd Mat Min Exi Min Mat Fac Fac DSF Fac Upp War Pro Fac Res Qua Res Tes Acc Machines Disabled 30 | . . . . 1 4 14 . . . . 1 . 4 1 1 1 3 . Max in Single Turn 3 | . . . . 1 2 3 . . . . 1 . 1 1 1 1 1 . Garrison Access 2 | . . . . . . . . . . . . . 1 . . 1 . . Machines Repaired . | . . . . . . . . . . . . . . . . . . . Machines Dismantled . | . . . . . . . . . . . . . . . . . . . Machines Sabotaged . | . . . . . . . . . . . . . . . . . . . Overloaded Fab Kills . | . . . . . . . . . . . . . . . . . . . Hacking | -11 -10 -10 -10 -9 -8 -7 -6 -6 -5 -5 -5 -4 -4 -3 -3 -2 -2 -1 --------- Run | Yrd Mat Min Exi Min Mat Fac Fac DSF Fac Upp War Pro Fac Res Qua Res Tes Acc Machines Accessed 52 | . 10 . 2 1 9 7 3 . 1 . 2 . 1 3 5 . 4 4 Terminals 37 | . 8 . . . 7 3 3 . 1 . . . . 3 5 . 3 4 Fabricators 2 | . . . . . . 1 . . . . . . . . . . 1 . Repair Stations . | . . . . . . . . . . . . . . . . . . . Recycling Units 6 | . 2 . . . 2 1 . . . . . . 1 . . . . . Scanalyzers 1 | . . . . . . 1 . . . . . . . . . . . . Garrison Access 1 | . . . . . . 1 . . . . . . . . . . . . Total Hacks 120 | . 35 . 2 1 17 16 8 . 2 . 5 . 1 7 10 . 9 7 Successful 56 | . 20 . 2 1 8 5 6 . . . 5 . . . 3 . 5 1 Failed 64 | . 15 . . . 9 11 2 . 2 . . . 1 7 7 . 4 6 Catastrophic 13 | . 1 . . . 1 2 . . . . . . 1 3 2 . 1 2 Database Lockouts . | . . . . . . . . . . . . . . . . . . . Manual 56 | . 21 . 1 . 16 3 3 . . . . . . 3 1 . 6 2 Terminals 91 | . 26 . . . 15 8 8 . 2 . . . . 7 10 . 8 7 Fabricators 3 | . . . . . . 2 . . . . . . . . . . 1 . Repair Stations . | . . . . . . . . . . . . . . . . . . . Recycling Units 13 | . 9 . . . 2 1 . . . . . . 1 . . . . . Scanalyzers 3 | . . . . . . 3 . . . . . . . . . . . . Garrison Access 2 | . . . . . . 2 . . . . . . . . . . . . Terminal Hacks 26 | . 8 . 2 1 1 1 3 . . . 5 . . . 3 . 1 1 Record 1 | . . . 1 . . . . . . . . . . . . . . . Robot Analysis 1 | . . . . . . 1 . . . . . . . . . . . . Prototype ID Bank 7 | . 2 . . . 1 . . . . . 4 . . . . . . . Open Door 3 | . . . . 1 . . . . . . 1 . . . 1 . . . Open DSF 1 | . . . . . . . 1 . . . . . . . . . . . Emergency Access Points 1 | . 1 . . . . . . . . . . . . . . . . . Scanalyzer Index 1 | . . . . . . . 1 . . . . . . . . . . . Unreport Threat 1 | . . . . . . . 1 . . . . . . . . . . . Locate Traps 1 | . . . . . . . . . . . . . . . 1 . . . Hauler Manifests 1 | . 1 . . . . . . . . . . . . . . . . . Registered Components 1 | . 1 . . . . . . . . . . . . . . . . . Registered Prototypes 1 | . 1 . . . . . . . . . . . . . . . . . Zone Layout 4 | . 2 . . . . . . . . . . . . . 1 . . 1 Proto ID Catalog 1 | . . . 1 . . . . . . . . . . . . . . . Protovariant Controls 1 | . . . . . . . . . . . . . . . . . 1 . Fabricator Hacks 1 | . . . . . . 1 . . . . . . . . . . . . Network Status 1 | . . . . . . 1 . . . . . . . . . . . . Repair Station Hacks . | . . . . . . . . . . . . . . . . . . . Recycling Unit Hacks 4 | . 2 . . . 1 1 . . . . . . . . . . . . Retrieve Components 4 | . 2 . . . 1 1 . . . . . . . . . . . . Scanalyzer 1 | . . . . . . 1 . . . . . . . . . . . . Insert Component 1 | . . . . . . 1 . . . . . . . . . . . . Garrison Access Hacks . | . . . . . . . . . . . . . . . . . . . Unauthorized Hacks 24 | . 10 . . . 6 1 3 . . . . . . . . . 4 . Terminals 21 | . 8 . . . 6 1 3 . . . . . . . . . 3 . Assimilate 1 | . 1 . . . . . . . . . . . . . . . . . Botnet 4 | . 2 . . . 1 . 1 . . . . . . . . . . . Skim 16 | . 5 . . . 5 1 2 . . . . . . . . . 3 . Fabricators 1 | . . . . . . . . . . . . . . . . . 1 . Liberate 1 | . . . . . . . . . . . . . . . . . 1 . Repair Stations . | . . . . . . . . . . . . . . . . . . . Recycling Units 2 | . 2 . . . . . . . . . . . . . . . . . Tunnel 2 | . 2 . . . . . . . . . . . . . . . . . Scanalyzers . | . . . . . . . . . . . . . . . . . . . Garrison Access . | . . . . . . . . . . . . . . . . . . . Data Cores Recovered 2 | . . . . . 1 . . . . . . . . . . . 1 . Used . | . . . . . . . . . . . . . . . . . . . Hacking Detections 44 | . 9 . . . 9 7 2 . 1 . . . 1 3 5 . 3 4 Full Trace Events 4 | . . . . . . 2 . . . . . . . 1 . . . 1 Feedback Events 1 | . . . . . . . . . . . . . . . . . . 1 Hackware Fried 1 | . . . . . . . . . . . . . . . . . . 1 Feedback Blocked . | . . . . . . . . . . . . . . . . . . . Robot Schematics Acquired . | . . . . . . . . . . . . . . . . . . . Robots Built . | . . . . . . . . . . . . . . . . . . . Authchips . | . . . . . . . . . . . . . . . . . . . Time . | . . . . . . . . . . . . . . . . . . . Total Robot Build Rating . | . . . . . . . . . . . . . . . . . . . Part Schematics Acquired . | . . . . . . . . . . . . . . . . . . . Parts Built . | . . . . . . . . . . . . . . . . . . . Authchips . | . . . . . . . . . . . . . . . . . . . Time . | . . . . . . . . . . . . . . . . . . . Total Part Build Rating . | . . . . . . . . . . . . . . . . . . . Parts Repaired . | . . . . . . . . . . . . . . . . . . . Time . | . . . . . . . . . . . . . . . . . . . Parts Recycled . | . . . . . . . . . . . . . . . . . . . Recycled Matter . | . . . . . . . . . . . . . . . . . . . Retrieved Matter . | . . . . . . . . . . . . . . . . . . . Retrieved Components 22 | . 9 . . . 10 3 . . . . . . . . . . . . Parts Scanalyzed 1 | . . . . . . 1 . . . . . . . . . . . . Part Schematics Acquired . | . . . . . . . . . . . . . . . . . . . Parts Damaged . | . . . . . . . . . . . . . . . . . . . Bothacking | -11 -10 -10 -10 -9 -8 -7 -6 -6 -5 -5 -5 -4 -4 -3 -3 -2 -2 -1 ------------ Run | Yrd Mat Min Exi Min Mat Fac Fac DSF Fac Upp War Pro Fac Res Qua Res Tes Acc Used RIF Installer . | . . . . . . . . . . . . . . . . . . . Robots Hacked . | . . . . . . . . . . . . . . . . . . . Non-combat . | . . . . . . . . . . . . . . . . . . . Combat . | . . . . . . . . . . . . . . . . . . . Robot Hacks Applied . | . . . . . . . . . . . . . . . . . . . Relay Couplers Released 4 | . . . . . . . . . . . . . . . . 4 . . Machine Destruction 4 | . . . . . . . . . . . . . . . . 4 . . Fabnet Peak Effective % . | . . . . . . . . . . . . . . . . . . . Robots Rewired 3 | . . . . . . . . . . 2 1 . . . . . . . Allies Hacked 2 | . . . . . . . . . . . 2 . . . . . . . Hacks Repelled . | . . . . . . . . . . . . . . . . . . . Allies | -11 -10 -10 -10 -9 -8 -7 -6 -6 -5 -5 -5 -4 -4 -3 -3 -2 -2 -1 -------- Run | Yrd Mat Min Exi Min Mat Fac Fac DSF Fac Upp War Pro Fac Res Qua Res Tes Acc Total Allies 13 | . . . . 3 . . . . . 2 1 2 2 . . . 3 . Largest Group 3 | . . . . 3 3 . . . . 2 2 1 1 . . . 3 . Highest-Rated Group 174 | . . . . 72 72 . . . . 98 98 56 116 . . . 174 . Highest-Rated Ally 116 | . . . . 31 31 . . . . 49 89 56 116 . . . 58 . Total Orders 1 | . . . . . . . . . . . 1 . . . . . . . STAY 1 | . . . . . . . . . . . 1 . . . . . . . Ally Attacks 109 | . . . . . 3 12 . 26 2 . 29 5 24 . . . 8 . Total Damage 4071 | . . . . . 44 653 . 636 . . 798 192 1464 . . . 284 . Kills 20 | . . . . . . 3 . 1 . . 7 1 8 . . . . . Allies Corrupted 1 | . . . . . . . . . . . 1 . . . . . . . Allies Melted 2 | . . . . . . . . . . . . . . . . 2 . . Turrets Deployed 2 | . . . . . . 1 . 1 . . . . . . . . . . Field Lobotomies 4 | . . . . . . . . . . . . 2 2 . . . . . Intel | -11 -10 -10 -10 -9 -8 -7 -6 -6 -5 -5 -5 -4 -4 -3 -3 -2 -2 -1 ------- Run | Yrd Mat Min Exi Min Mat Fac Fac DSF Fac Upp War Pro Fac Res Qua Res Tes Acc Active Infowar (turns) 7123 | . 60 . . 1 . 244 496 684 445 18 511 382 683 405 774 1525 444 451 Optics 1922 | . . . . . . . . . . . 352 . . . . 675 444 451 Sensors 4740 | . . . . 1 . 244 496 684 445 18 . . 389 311 743 724 441 244 Seismic 60 | . 60 . . . . . . . . . . . . . . . . . Decoding 4034 | . . . . . . . . . . . 159 382 683 405 774 1511 120 . Jamming 386 | . . . . . . . . . . . . . . . . 384 . 2 Robot Analysis Total 1 | . . . . . . 1 . . . . . . . . . . . . Derelict Logs Recovered 6 | . . 1 . 1 . . . . . 1 . 3 . . . . . . Drone Launches 16 | . . . . . . . . 14 2 . . . . . . . . . Drone Recoveries . | . . . . . . . . . . . . . . . . . . . Decoded 0b10 Intel 105 | . . . . . . . . . . . . . 22 18 21 41 3 . Traps 7 | . . . . . . . . . . . . . 1 3 2 . 1 . Emergency Access 10 | . . . . . . . . . . . . . . . 1 8 1 . Items 71 | . . . . . . . . . . . . . 16 11 15 28 1 . Machines 8 | . . . . . . . . . . . . . 3 1 2 2 . . Patrols 5 | . . . . . . . . . . . . . 1 2 1 1 . . Guards 4 | . . . . . . . . . . . . . 1 1 . 2 . . Exploration | -11 -10 -10 -10 -9 -8 -7 -6 -6 -5 -5 -5 -4 -4 -3 -3 -2 -2 -1 ------------- Run | Yrd Mat Min Exi Min Mat Fac Fac DSF Fac Upp War Pro Fac Res Qua Res Tes Acc Turns Passed 18547 | 183 1422 804 551 1030 2370 3132 539 684 445 832 1891 382 683 405 774 1525 444 451 Spaces Moved 10833 | 91 720 492 338 604 948 1274 195 280 156 271 979 305 417 584 495 1700 407 577 Core 91 | 7 . . . . . 84 . . . . . . . . . . . . Treads 4160 | 84 720 492 338 604 948 974 . . . . . . . . . . . . Legs 3087 | . . . . . . . . 166 156 271 979 305 327 37 495 351 . . Wheels 496 | . . . . . . 187 195 114 . . . . . . . . . . Hover 2605 | . . . . . . 29 . . . . . . . 243 . 1349 407 577 Flight 394 | . . . . . . . . . . . . . 90 304 . . . . Fastest Speed 26 | 50 160 160 160 160 160 152 155 130 200 270 90 97 29 26 120 38 38 43 Average Speed 138 | 151 160 160 160 160 205 212 168 190 229 270 174 102 104 48 120 54 42 53 Slowest Speed 1000 | 160 160 160 160 160 243 1000 170 410 270 270 270 173 360 120 120 120 117 260 Overloaded Moves . | . . . . . . . . . . . . . . . . . . . Propulsion Burnouts . | . . . . . . . . . . . . . . . . . . . Robots Hopped 1 | . . . . . . 1 . . . . . . . . . . . . Potential Cave-ins 3 | . . . . . . . . 1 . . . . . . . 2 . . Cave-ins Triggered . | . . . . . . . . . . . . . . . . . . . Teleports 4 | . . . . . . . . . . . . . . . 2 . . 2 Exploration Rate (%) 50 | 5 97 97 68 99 73 26 5 97 4 55 89 57 12 20 40 35 50 28 Regions Visited 18 Branch Regions 8 Pre-discovered Areas 6 | . 3 1 1 . 1 . . . . . . . . . . . . . Known Exits Taken 13 | . . 1 . . 1 1 1 . 1 1 1 1 1 1 1 1 1 . Unknown Exits Taken 4 | 1 1 . 1 1 . . . . . . . . . . . . . . Scrap Searched 7 | . . 1 . 2 . . . . . 2 . 2 . . . . . . Spaces Dug 63 | . . . . . . 2 . . . . . 2 4 7 7 4 3 34 Terrain Destroyed 380 | . . . . . 30 56 . . 1 109 38 9 44 7 8 31 11 36 Melee 23 | . . . . . . . . . . . . . 1 6 5 1 3 7 Projectile 141 | . . . . . 30 22 . . 1 . 4 9 43 1 3 19 8 1 AOE 216 | . . . . . . 34 . . . 109 34 . . . . 11 . 28 Terrain Rammed . | . . . . . . . . . . . . . . . . . . . Walls Destroyed . | . . . . . . . . . . . . . . . . . . . Machines Disabled . | . . . . . . . . . . . . . . . . . . . Actions | -11 -10 -10 -10 -9 -8 -7 -6 -6 -5 -5 -5 -4 -4 -3 -3 -2 -2 -1 --------- Run | Yrd Mat Min Exi Min Mat Fac Fac DSF Fac Upp War Pro Fac Res Qua Res Tes Acc Total 13606 | 117 866 503 350 660 1246 1549 406 433 208 343 1144 354 565 680 646 2221 638 677 Wait 1467 | . 42 5 . 39 133 145 206 106 22 42 48 22 11 16 85 359 147 39 Move 10813 | 90 719 491 337 603 947 1271 194 279 155 270 978 304 416 583 494 1699 406 577 Hop 1 | . . . . . . 1 . . . . . . . . . . . . Pick Up 227 | 11 12 1 6 5 33 16 3 19 . 1 32 4 14 12 20 31 6 1 Fast Attach 78 | 1 5 . . . 5 1 . 7 . . 1 . 9 16 1 15 12 5 Attach 165 | 5 1 . . 2 13 11 3 5 7 1 30 6 20 14 6 20 4 17 Detach 36 | . . . . . 1 1 . 1 . . 11 2 6 3 3 5 1 2 Swap 76 | 1 5 1 2 3 15 8 . 3 . . 8 . 7 1 . 12 9 1 Drop 194 | . 13 1 5 3 34 13 . 13 5 1 13 1 16 12 5 35 18 6 Fire 396 | 9 69 4 . 5 62 72 . . 18 14 12 15 59 1 3 43 7 3 Melee 111 | . . . . . . . . . . . 11 . 7 22 29 1 15 26 Ram 3 | . . . . . . 3 . . . . . . . . . . . . Kick 1 | . . . . . . . . . 1 . . . . . . . . . Crush 10 | . . . . . 3 7 . . . . . . . . . . . . Escape Stasis 13 | . . . . . . . . . . . . . . . . . 13 . Rewire 15 | . . . . . . . . . . 14 . . . . . 1 . . Trap . | . . . . . . . . . . . . . . . . . . . Miscellaneous . | . . . . . . . . . . . . . . . . . . . Route ------- -11/Scrapyard -10/Materials (discovered 6 exits: *Mat x3 / [*Min x2] / *Sub) -10/Mines (discovered 4 exits: *Mat x2 / *Exi / Sub) -10/Exiles -9/Mines (discovered 2 exits: *Mat x2) -8/Materials (discovered 3 exits: *Fac x3) -7/Factory (discovered 3 exits: *Fac x3) -6/Factory -6/DSF -5/Factory (discovered 2 exits: *Fac / *Upp) -5/Upper Caves (discovered 2 exits: [*Upp] / *War) -5/Warlord -4/Proximity Caves -4/Factory -3/Research (discovered 2 exits: *Qua x2) -3/Quarantine -2/Research (discovered 2 exits: *Acc / *Tes) -2/Testing -1/Access History --------- Turn | Location | Event 5 | -11/Scrapyard | Discovered new exit (range 15) 184 | -11/Scrapyard | Entered Materials 300 | -10/Materials | Build established: Mutant 417 | -10/Materials | Discovered new exit (range 15) 565 | -10/Materials | Discovered new exit (range 3) 646 | -10/Materials | Discovered new exit (range 9) 1029 | -10/Materials | Learned 4 Materials zone layouts 1061 | -10/Materials | Learned 2 Mines zone layouts 1062 | -10/Materials | Discovered new exit (range 3) 1074 | -10/Materials | Discovered new exit (range 14) 1098 | -10/Materials | Learned location of 2 exits from Mines 1100 | -10/Materials | Identified exit to Materials 1111 | -10/Materials | Learned Storage trap positions 1132 | -10/Materials | Learned location of Mines (-9) 1161 | -10/Materials | Learned Storage security intel 1606 | -10/Materials | Entered Mines 1607 | -10/Mines | Identified exit to Exiles 1607 | -10/Mines | Identified exit to Subcaves 1621 | -10/Mines | Deemed a non-threat by the Exiles lab entrance 1722 | -10/Mines | Discovered exit to Materials (range 10) 1883 | -10/Mines | Learned location of Storage (-9) 1996 | -10/Mines | Learned Materials garrison access intel 2017 | -10/Mines | A weapon hastily lodged in a ceiling crevice suddenly fell to the ground 2086 | -10/Mines | Discovered exit to Materials (range 7) 2410 | -10/Mines | Entered Exiles 2452 | -10/Exiles | Met 8R-AWN 2479 | -10/Exiles | Met EX-HEX 2552 | -10/Exiles | Met EX-DEC 2579 | -10/Exiles | Learned location of Zion (-7) 2717 | -10/Exiles | Met EX-BIN 2739 | -10/Exiles | Aligned with FarCom system 2741 | -10/Exiles | Given EX-Vault access code 2778 | -10/Exiles | Opened EX-Vault 2787 | -10/Exiles | Found Superbattery 2791 | -10/Exiles | Found Field Lobotomy Kit 2802 | -10/Exiles | Found Deploy-a-Sentry 2805 | -10/Exiles | Found Deploy-a-Sentry 2807 | -10/Exiles | Found Deploy-a-Sentry 2843 | -10/Exiles | Warned to stay clear of 0b10 Research branches 2940 | -10/Exiles | Discovered new exit (range 14) 2961 | -10/Exiles | Stole three prototypes: Superbattery, Field Lobotomy Kit, Deploy-a-Sentry 2961 | -10/Exiles | Entered Mines 3021 | -9/Mines | Learned Materials stockpile data 3075 | -9/Mines | Found a damaged Exp. Sensor Array with a note attached 3079 | -9/Mines | Found Prototype Device 3182 | -9/Mines | Discovered new exit (range 6) 3641 | -9/Mines | Found the Drone Emporium 3652 | -9/Mines | Found Prototype Device 3695 | -9/Mines | Identified Exp. Sensor Array 3880 | -9/Mines | Received a Mining Laser from a helpful Derelict 3880 | -9/Mines | Discovered new exit (range 6) 3991 | -9/Mines | Entered Materials 3991 | -8/Materials | Accompanied by 3 allies 3991 | -8/Materials | Evolved 4 slots: Propulsion x1, Utility x2, Weapon x1 3991 | -8/Materials | Identified Bomb Drone Bay 3992 | -8/Materials | Identified exit to Factory 3994 | -8/Materials | Loaded intel: 1 garrison access location 3996 | -8/Materials | Led the pair of lost Derelicts to an unsafe place 4540 | -8/Materials | Build established: Tank 5270 | -8/Materials | Discovered exit to Factory (range 16) 5551 | -8/Materials | Found Prototype Launcher 5552 | -8/Materials | Identified Rocket Array 5591 | -8/Materials | Found Rocket Array 5595 | -8/Materials | Found Rocket Array 5860 | -8/Materials | Discovered exit to Factory (range 16) 6229 | -8/Materials | Learned location of Lower Caves (-7) 6263 | -8/Materials | Learned 4 Recycling zone layouts 6288 | -8/Materials | Learned 4 Lower Caves zone layouts 6312 | -8/Materials | Learned location of 1 exit from Extension 6313 | -8/Materials | Learned Factory fabricator intel 6361 | -8/Materials | Entered Factory 6361 | -7/Factory | Evolved 2 slots: Propulsion x1, Utility x1 6362 | -7/Factory | Loaded intel: 6 fabricator locations 6363 | -7/Factory | FarCom data flow suspended 6765 | -7/Factory | Discovered new exit (range 15) 7219 | -7/Factory | Discovered new exit (range 10) 7239 | -7/Factory | Identified exit to Factory 7707 | -7/Factory | Garrison activated, responded to threat 8028 | -7/Factory | Discovered exit to Factory (range 4) 8189 | -7/Factory | Lost 6 parts (1p2n1u2w) 8213 | -7/Factory | DAS Turret deployed 8238 | -7/Factory | Lost 3 parts (2n1w) 8461 | -7/Factory | Build established: Mutant 9389 | -7/Factory | Core integrity fell below 50% 9493 | -7/Factory | Entered another Factory area 9493 | -6/Factory | Evolved 2 slots: Utility x2 10032 | -6/Factory | Identified exit to DSF 10032 | -6/Factory | Entered DSF 10104 | -6/DSF | DAS Turret deployed 10111 | -6/DSF | Additional patrols routed to DSF 10273 | -6/DSF | Lost 6 allies 10358 | -6/DSF | Lost 3 allies 10375 | -6/DSF | Found Hvy. Reactive Plating 10477 | -6/DSF | Discovered new exit (range 19) 10517 | -6/DSF | Lost 3 allies 10587 | -6/DSF | Build established: Skirmisher 10714 | -6/DSF | Identified exit to Factory 10716 | -6/DSF | Entered Factory 10716 | -5/Factory | Evolved 2 slots: Power x1, Weapon x1 10756 | -5/Factory | Discovered new exit (range 13) 10784 | -5/Factory | Identified exit to Upper Caves 11096 | -5/Factory | Discovered new exit (range 16) 11161 | -5/Factory | Entered Upper Caves 11161 | -5/Upper Caves | Spotted UD-K23(f) 11161 | -5/Upper Caves | Spotted YJ-0JA(f) 11162 | -5/Upper Caves | Superbattery stolen by Master Thief 11163 | -5/Upper Caves | Encountered a Master Thief 11163 | -5/Upper Caves | Encountered a Master Thief 11164 | -5/Upper Caves | Deploy-a-Sentry stolen by Master Thief 11168 | -5/Upper Caves | Spotted V5-DGG(f) 11169 | -5/Upper Caves | Encountered a Master Thief 11179 | -5/Upper Caves | Exp. Sensor Array stolen by Master Thief 11238 | -5/Upper Caves | Learned Factory stockpile data 11458 | -5/Upper Caves | Build established: Tank 11759 | -5/Upper Caves | Attracted the attention of an 0b10 outpost 11802 | -5/Upper Caves | Destroyed 9 combat bots 11971 | -5/Upper Caves | Discovered new exit (range 7) 11978 | -5/Upper Caves | A Derelict revealed a hidden shortcut to "reach the base" 11979 | -5/Upper Caves | Identified exit to Warlord 11993 | -5/Upper Caves | Entered Warlord 11993 | -5/Warlord | Accompanied by 2 allies 12462 | -5/Warlord | Build established: Gunner 12811 | -5/Warlord | Met Warlord 12836 | -5/Warlord | Warlord's base attacked by MAIN.C 13007 | -5/Warlord | Found Prototype Piercing Weapon 13010 | -5/Warlord | Found Prototype Piercing Weapon 13127 | -5/Warlord | Identified Vortex Lance (x2) 13141 | -5/Warlord | Found Prototype Reactor 13146 | -5/Warlord | Found Prototype Processor 13155 | -5/Warlord | Found Prototype Processor 13158 | -5/Warlord | Identified Exp. Targeting Computer 13159 | -5/Warlord | Identified Spectral Analyzer 13184 | -5/Warlord | Found Prototype Hackware 13186 | -5/Warlord | Warlord forces counterattacked 13191 | -5/Warlord | Found Prototype Device 13197 | -5/Warlord | Identified System Purifier 13366 | -5/Warlord | P-70 Sage assimilated allied RI-3PL(g) 13448 | -5/Warlord | Lost 7 allies 13453 | -5/Warlord | Build established: Mutant 13474 | -5/Warlord | Spotted Executioner 13482 | -5/Warlord | Spotted Executioner 13482 | -5/Warlord | Spotted B-86 Titan 13482 | -5/Warlord | Spotted Striker 13482 | -5/Warlord | Spotted B-75 Beast 13491 | -5/Warlord | Spotted Striker 13493 | -5/Warlord | Destroyed Executioner 13501 | -5/Warlord | System corruption reached 10% 13505 | -5/Warlord | Core integrity fell below 50% 13511 | -5/Warlord | Warlord base infiltrated, sounded retreat 13517 | -5/Warlord | Core integrity fell below 20% 13517 | -5/Warlord | Rewired Striker 13521 | -5/Warlord | Destroyed 12 combat bots 13538 | -5/Warlord | Lost 11 parts (1p4n2u4w) 13575 | -5/Warlord | Lost 6 allies 13619 | -5/Warlord | Spotted Executioner 13651 | -5/Warlord | Identified Vortex Chain Reactor 13661 | -5/Warlord | Lost 4 allies 13782 | -5/Warlord | P-70 Sage assimilated allied L0-F8B(b) 13822 | -5/Warlord | Found Prototype Ballistic Cannon 13822 | -5/Warlord | Identified Hvy. Autocannon 13845 | -5/Warlord | Spotted B-86 Titan 13855 | -5/Warlord | Spotted Executioner 13875 | -5/Warlord | Discovered new exit (range 12) 13883 | -5/Warlord | Identified exit to Proximity Caves 13884 | -5/Warlord | Entered Proximity Caves 13895 | -4/Proximity Caves | Lost 3 allies 13916 | -4/Proximity Caves | Learned Research stockpile data 13939 | -4/Proximity Caves | Learned Research emergency access door positions 14006 | -4/Proximity Caves | Attracted the attention of an 0b10 checkpoint 14149 | -4/Proximity Caves | Assimilated H-77 Assassin with FLK Orb 14167 | -4/Proximity Caves | Assimilated H-77 Assassin with FLK Orb 14180 | -4/Proximity Caves | Lost 4 parts (1n3w) 14251 | -4/Proximity Caves | Discovered new exit (range 9) 14260 | -4/Proximity Caves | Identified exit to Factory 14266 | -4/Proximity Caves | Entered Factory 14266 | -4/Factory | Accompanied by 1 ally 14266 | -4/Factory | Evolved 2 slots: Propulsion x1, Utility x1 14270 | -4/Factory | Identified System Mapper 14405 | -4/Factory | Spotted B-86 Titan 14433 | -4/Factory | Assimilated B-86 Titan with FLK Orb 14556 | -4/Factory | Build established: Hacker-Mutant 14649 | -4/Factory | Discovered new exit (range 8) 14663 | -4/Factory | Identified exit to Research 14762 | -4/Factory | Garrison activated, responded to threat 14868 | -4/Factory | Assimilated P-70 Sage with FLK Orb 14877 | -4/Factory | Destroyed 7 combat bots 14904 | -4/Factory | Core integrity fell below 50% 14945 | -4/Factory | Lost 21 parts (4p6n7u4w) 14949 | -4/Factory | Entered Research 14949 | -3/Research | Evolved 2 slots: Propulsion x2 14950 | -3/Research | Identified exit to Quarantine 15151 | -3/Research | Build established: Mutant 15180 | -3/Research | Found Prototype Processor 15180 | -3/Research | Identified Exp. Signal Interpreter 15294 | -3/Research | Discovered exit to Quarantine (range 7) 15311 | -3/Research | Found Prototype Device 15316 | -3/Research | Identified Exp. Focal Shield 15354 | -3/Research | Entered Quarantine 15382 | -3/Quarantine | Found Alien Artifact 15408 | -3/Quarantine | Found Alien Artifact 15410 | -3/Quarantine | Found Alien Artifact 15412 | -3/Quarantine | Found Alien Artifact 15486 | -3/Quarantine | Identified Transdimensional Reconstructor (x2) 15486 | -3/Quarantine | Warped through subspace 15497 | -3/Quarantine | Warped through subspace 15504 | -3/Quarantine | Discovered new exit (range 14) 15528 | -3/Quarantine | Identified exit to Research 15736 | -3/Quarantine | Spotted Alpha 7 15747 | -3/Quarantine | Found Alien Launcher 16128 | -3/Quarantine | Entered Research 16128 | -2/Research | Warlord forces began assault on 0b10 16128 | -2/Research | Evolved 2 slots: Utility x2 16238 | -2/Research | Research machine network offline 16291 | -2/Research | Spotted B-90 Cyclops 16331 | -2/Research | Borebot progress halted 16434 | -2/Research | Spotted Striker 16441 | -2/Research | Discovered new exit (range 14) 16446 | -2/Research | Lost 6 allies 16476 | -2/Research | Identified exit to Access 16504 | -2/Research | Destroyed Striker 16536 | -2/Research | Met up with Warlord 16542 | -2/Research | Met DD-05H 16630 | -2/Research | System corruption reached 10% 16662 | -2/Research | Borebot progress halted 16693 | -2/Research | Build established: Scavenger-Mutant 16732 | -2/Research | Spotted Striker 16823 | -2/Research | Discovered new exit (range 10) 16827 | -2/Research | Identified exit to Testing 16929 | -2/Research | Found Exp. Sensor Array 16960 | -2/Research | Borebot progress halted 16982 | -2/Research | Found Prototype Processor 16982 | -2/Research | Identified Exp. Core Analyzer 16984 | -2/Research | Found Spectral Analyzer 16987 | -2/Research | Found Exp. Targeting Computer 16990 | -2/Research | Spotted Striker 16992 | -2/Research | Spotted Executioner 17033 | -2/Research | Lost 3 allies 17046 | -2/Research | Spotted Striker 17047 | -2/Research | Spotted Striker 17068 | -2/Research | Spotted Striker 17075 | -2/Research | Spotted Executioner 17081 | -2/Research | Spotted Striker 17083 | -2/Research | Spotted Executioner 17092 | -2/Research | Found Warlord Statue 17115 | -2/Research | Lost 3 allies 17118 | -2/Research | Met PL-HR7 17250 | -2/Research | Build established: Scavenger-Scout 17317 | -2/Research | Spotted Striker 17325 | -2/Research | Spotted Executioner 17325 | -2/Research | Destroyed Executioner 17364 | -2/Research | Lost 4 allies 17469 | -2/Research | Spotted Striker 17470 | -2/Research | Spotted Executioner 17488 | -2/Research | Spotted Striker 17488 | -2/Research | Spotted Striker 17527 | -2/Research | Lost 3 allies 17576 | -2/Research | Spotted Executioner 17586 | -2/Research | Spotted Executioner 17588 | -2/Research | Spotted Executioner 17589 | -2/Research | Destroyed Executioner 17620 | -2/Research | Spotted Striker 17631 | -2/Research | Given Cave Seal Controls access code 17633 | -2/Research | Spotted Executioner 17653 | -2/Research | Entered Testing 17669 | -2/Testing | Protovariant out of control (PP-5N8OGC86VP) 17669 | -2/Testing | Unleashed a protovariant (PP-5N8OGC86VP) 17726 | -2/Testing | Found System Mapper 17769 | -2/Testing | Found Prototype Energy Cannon 17769 | -2/Testing | Identified Imp. Potential Cannon 17789 | -2/Testing | Found Prototype Launcher 17789 | -2/Testing | Identified Point Singularity Launcher 17825 | -2/Testing | Found Prototype Device 17826 | -2/Testing | Identified AEGIS Remote Shield 17894 | -2/Testing | System corruption reached 30% 18082 | -2/Testing | Discovered exit to Access (range 19) 18097 | -2/Testing | Entered Access 18097 | -1/Access | Evolved 2 slots: Utility x2 18173 | -1/Access | Adv. Hacking Suite fried by hacking feedback 18296 | -1/Access | Spotted B-99 Colossus 18363 | -1/Access | Identified Hpw. Transdimensional Reconstructor (x2) 18363 | -1/Access | Warped through subspace 18363 | -1/Access | Spotted B-99 Colossus 18381 | -1/Access | Warped through subspace 18382 | -1/Access | Destroyed 9 combat bots 18383 | -1/Access | Lost 16 parts (2p7n6u1w) 18490 | -1/Access | Core integrity fell below 50% 18490 | -1/Access | System corruption reached 10% 18526 | -1/Access | Lost 6 parts (1n3u2w) 18547 | -1/Access | Identified Sigix Terminator 18548 | -1/Access | Fired Sigix Terminator 18548 | -1/Access | Destroyed self with Sigix Terminator Last Messages --------------- 18484_ System corrupted: Component data lost. 18489_ Prc. Phase Gun destroyed. 18491_ Penetrated by Slug. 18492_ Cmb. Linear Gravjet destroyed. 18495_ Prc. Phase Gun destroyed. 18495_ Penetrated by Slug. 18498_ P-80 Master resets Y-72 Warden, system corruption cleaned. 18501_ Penetrated by Slug. 18537_ Cmb. Linear Gravjet destroyed. 18547_ Identified Sigix Terminator. 18548_ Sigix Terminator expended. 18548_ Destroyed Adv. Heat Sink. 18548_ Destroyed Sml. Battery. 18548_ P-80 Master destroyed. 18548_ Destroyed Imp. Antigrav System. 18548_ P-80 Master destroyed. 18548_ Imp. Gyrokinetic Inverter destroyed. 18548_ Destroyed Imp. Gyrokinetic Inverter. 18548_ Graphene Brace destroyed. 18548_ Destroyed Graphene Brace. Map ----- +----------------------------------------------------+ | ?????????????????????????????? | | ?????????????????????????????? | | ?????????????????????????????? | | ?????????????????????????????? | | ?????????????????????????????? | | ?????????????????????????????? | | ?????????????????????????????? | | ?????????????????????????????? | | ?????????????????????????????? | | ?????????????????????????????? | | ?????????????????????????????? | | ?????????????????????????????? | | ?????????????????????????????? | | ?????????????????????????????? | | ???#####?????????????????????? | | ???# #?????????????????????? | | ???# " #??#########??????????? | | ???# #??? #??????????? | | ???## ##??? #??????????? | | ????# #????? #??????????? | | ????# #????? #??????????? | | ????# #?????? ???????????? | | ????# #?????? ???????????? | | ????# #??????? ????????????? | | ????# #??????? ?#######????? | | ????#@;??????##+### #????? | | ????# ;####### #????? | | ????# #?#### | | ????##### #? | | ????????# #?? | | ????????# #?? | | ????????# """"" #??? | | ????????# """""""" #??? | | ????????# """""""" #???? | | ????????# """"" #???? | | ????????# #????? | | ????????# #????? | | ????????+ #????? | | ????????# #????? | | ????????###+## ###### | | ?????????????# | | ?????????????+ | | ?????????????####### | | ???????????????????## ###### | | ????????????????????# #????? | | ????????????????????# #????? | | ????????????????????# #????? | | ????????????????????# #????? | | ????????????????????# #????? | | ????????????????????# #????? | +----------------------------------------------------+ Best States ------------- Heat Dissipation 83 Energy Generation 62 Energy Capacity 1010 Matter Stores 300 Matter Capacity 300 Sight Range 24 Robot Scan Range 20 Terrain Scan Density 10 Jamming Range 16 Power Amplification 30 Additional Mass Support 9 Base Temperature (-) 200 Armor Coverage 675 Resistance: KI 40 Core Shielding 20 Phase Shifting 15 Evasion (%) 87 Targeting Accuracy 20 Target Analysis 8 Core Analysis 8 Recoil Reduction 4 Matter Filtering 30 Offensive Hacking 46 Defensive Hacking 14 Authchip Count 3 Item Schematics ----------------- None Robot Schematics ------------------ None Fabricated ------------ Nothing Repaired ---------- Nothing Alien Tech Used ----------------- Transdimensional Reconstructor High-powered Transdimensional Reconstructor Sigix Terminator Achievements -------------- Sniper Challenges ------------ None Game ------ Seed AdvancedImpactDetector Manual? 0 Play Time 02:15:51 Cumulative 398.7 hours Start 2025.10.18 @ 08:19:20 End 2025.10.18 @ 18:31:20 Sessions 4 Manual Loads 0 Difficulty Rogue Special Mode None Game No. 516 Rogue 516 Adventurer 0 Explorer 0 Win Type - Total 12 Types 6/0/1/2/1/0/2/0/0/0 Lore% 88 Gallery% 84 Achievement% 71 Wizard Run 0 Options --------- Layout 0 ASCII 0 Keyboard 0 Movement Mouse Keybinds 0 Fullscreen 1 Font 24/Tamsyn Map View 76x50 Zoom Use 0% Tactical HUD 1 Map Filters NONE Filters NONE Steam 1 RUN: fc37800d-9131-4ccb-adca-fffd2014695a